Cogmind - Beta 13 @@@ ROGUE MODE // 2024.04.23 @ 10:04:48 Player: Kate+Gabe4evr Result: Destroyed by 8R-AWN with 8R-AWN's Boregun Performance ------------- Evolutions (1) 500 Regions Visited (4) 800 Robots Destroyed (34) 170 Value Destroyed (768) 768 Prototype IDs (1) 20 Alien Tech Used (0) 0 Bonus (0) 0 TOTAL SCORE: 2258 Bonus ------- None Cogmind --------- Core Integrity 0/400 Matter 192/300 Energy 51/100 System Corruption 0% Temperature Warm (197) Movement Core (550) Ox10 Location -9/Exiles Parts ------- > --- POWER (1) -------- (None) > --- PROPULSION (3) --- (None) > --- UTILITY (2) ------ Large Storage Unit Hardened Light Armor Plating > --- WEAPON (3) ------- Medium Laser Small Laser Heavy Assault Rifle > --- INVENTORY (15) --- Light Treads Light Treads Light Treads Targeting Computer Targeting Computer Light Armor Plating Beam Rifle Autogun Peak State ------------ > --- POWER ------------ Improved Ion Engine > --- PROPULSION ------- Light Treads Light Treads Light Treads > --- UTILITY ---------- Large Storage Unit Hardened Light Armor Plating > --- WEAPON ----------- Small Laser Advanced Beam Cannon Heavy Assault Rifle > --- INVENTORY -------- Ion Engine Improved Ion Engine Light Treads Light Treads Light Treads Light Treads Improved Heat Sink Targeting Computer Targeting Computer Light Armor Plating Hardened Light Armor Plating Medium Laser Beam Rifle Heavy Assault Rifle Autogun [Rating: 16] Favorites ----------- Power Improved Ion Engine Engine Improved Ion Engine Propulsion Light Treads Treads Light Treads Utility Large Storage Unit Device Sensor Array Storage Large Storage Unit Protection Hardened Light Armor Plating Weapon Small Laser Energy Gun Small Laser Energy Cannon Advanced Beam Cannon Ballistic Gun Heavy Assault Rifle Build | -11 -10 -9 -9 -9 ------- Run | Yrd Mat Mat Min Exi Slots Evolved 2 | . . 2 . . Power . | . . . . . Propulsion 1 | . . 1 . . Utility . | . . . . . Weapon 1 | . . 1 . . Parts Attached 31 | 6 2 16 . 7 Power 4 | 1 . 1 . 2 Engine 4 | 1 . 1 . 2 Core . | . . . . . Reactor . | . . . . . Propulsion 11 | 2 . 8 . 1 Treads 11 | 2 . 8 . 1 Leg . | . . . . . Wheel . | . . . . . Hover . | . . . . . Flight . | . . . . . Utility 6 | 1 2 1 . 2 Device 2 | . 1 . . 1 Storage 2 | 1 1 . . . Processor . | . . . . . Hackware . | . . . . . Protection 2 | . . 1 . 1 Artifact . | . . . . . Weapon 10 | 2 . 6 . 2 Energy Gun 4 | 1 . 2 . 1 Energy Cannon 1 | . . 1 . . Ballistic Gun 5 | 1 . 3 . 1 Ballistic Cannon . | . . . . . Launcher . | . . . . . Special Weapon . | . . . . . Impact Weapon . | . . . . . Slashing Weapon . | . . . . . Piercing Weapon . | . . . . . Special Melee Weapon . | . . . . . Unidentified Prototypes 1 | . . 1 . . Parts Lost 12 | . . 1 . 11 Power 3 | . . . . 3 Propulsion 4 | . . . . 4 Utility 3 | . . 1 . 2 Weapon 2 | . . . . 2 Highest Loss Streak 11 | . . 1 . 11 To Critical Strikes 5 | . . . . 5 Average Slot Usage (%) 97 | . 98 97 100 89 Engine 11 | . 14 11 11 9 Treads 29 | . 28 31 33 26 Device 7 | . 12 7 . 1 Storage 11 | . 14 11 11 11 Protection 3 | . . 3 11 8 Energy Gun 16 | . 14 20 11 12 Energy Cannon 3 | . . 1 11 9 Ballistic Gun 11 | . 14 11 11 11 Naked Turns . | . . . . . Heaviest Build 40 | 12 28 40 40 40 Greatest Support 60 | 40 40 60 60 60 Greatest Overweight (x) 3 | 3 . . . . Average Overweight (x) . | . . . . . Largest Inventory Capacity 15 | 8 15 15 15 15 Average Capacity 13 | 7 10 15 15 15 Most Carried 15 | 1 7 15 15 15 Average Carried 9 | . 3 12 15 13 Final Capacity 15 | 8 15 15 15 15 Final Carried 15 | 1 6 15 15 8 Class Distribution -------------------- 36% | Mutant 32% | Scavenger-Tank 20% | Scavenger-Skirmisher 8% | Skirmisher Dominant Class ---------------- Mutant | -10/Materials Scavenger-Skirmisher | -9/Materials Scavenger-Tank | -9/Mines Scavenger-Tank | -9/Exiles Resources | -11 -10 -9 -9 -9 ----------- Run | Yrd Mat Mat Min Exi Matter Collected 683 | 202 100 280 95 6 Remotely . | . . . . . Salvage Created 1197 | . 239 575 270 113 Parts 103 | . 21 51 18 13 Haulers Intercepted 2 | . . 2 . . Recyclers Shooed 1 | . . 1 . . Parts Field Recycled . | . . . . . Retrieved Matter . | . . . . . Parts Self-Destructed . | . . . . . Prevented . | . . . . . Kills | -11 -10 -9 -9 -9 ------- Run | Yrd Mat Mat Min Exi Combat Hostiles Destroyed 35 | . 8 13 8 6 Guns 26 | . 8 13 3 2 Cannons 9 | . . . 5 4 Classes Destroyed 7 | . 2 4 . 1 Worker 1 | . . 1 . . Builder 1 | . . 1 . . Hauler 2 | . . 2 . . Swarmer 13 | . 3 7 3 . Grunt 12 | . 5 2 5 . Sentry 4 | . . 4 . . Assembled 6 | . . . . 6 Best Kill Streak 9 | . 3 9 5 7 Combat Bots Only 6 | . 3 6 5 6 Max Kills in Single Turn 2 | . 1 2 2 1 Gunslinging . | . . . . . Exploded . | . . . . . Melee . | . . . . . Uniques/NPCs Destroyed 1 | . . . . 1 EX-BIN (-9/Exiles) Combat | -11 -10 -9 -9 -9 -------- Run | Yrd Mat Mat Min Exi Hostile Shots Fired 213 | . 27 78 23 85 Missed 44 | . 8 12 8 16 Damage Taken 2351 | . 162 630 158 1401 Core 420 | . 12 95 26 287 Absorbed by Shields . | . . . . . Core Remaining (%) 97 | 100 95 . . . Volleys Fired 111 | . 22 44 11 34 Largest 3 | . 2 3 3 3 Hottest 131 | . 60 119 131 131 Shots Fired 248 | . 44 95 29 80 Gun 223 | . 44 92 18 69 Cannon 25 | . . 3 11 11 Launcher . | . . . . . Special . | . . . . . Kinetic 110 | . 22 44 11 33 Thermal 138 | . 22 51 18 47 Explosive . | . . . . . Electromagnetic . | . . . . . Robot Hit Streak 16 | . 16 13 7 12 Robot Miss Streak 5 | . 3 5 3 3 Penetration Max . | . . . . . Secondary Targets 2 | . 2 . . . Max Gunslinging Chain 1 | . 1 . . . Shots Hit Robots 150 | . 34 56 15 45 Core Hits 68 | . 16 24 12 16 Critical Kills . | . . . . . Critical Parts Destroyed . | . . . . . Critical Strikes 3 | . . 2 . 1 Burn 2 | . . 2 . . Destroy 1 | . . . . 1 Melee Attacks . | . . . . . Impact . | . . . . . Slashing . | . . . . . Piercing . | . . . . . Sneak Attacks . | . . . . . Combat Hostiles . | . . . . . Follow-up Attacks . | . . . . . Damage Inflicted 1932 | . 321 806 266 539 Guns 1623 | . 321 782 124 396 Cannons 305 | . . 20 142 143 Explosions . | . . . . . Melee . | . . . . . Ramming 4 | . . 4 . . Kinetic 906 | . 122 388 72 324 Thermal 1022 | . 199 414 194 215 Explosive . | . . . . . Electromagnetic . | . . . . . Impact . | . . . . . Slashing . | . . . . . Piercing . | . . . . . Highest Corruption . | . . . . . Average Corruption . | . . . . . Corruption Purged . | . . . . . Corruption Blocked . | . . . . . Overload Shots . | . . . . . Overflow Damage . | . . . . . Projectiles . | . . . . . Explosions . | . . . . . Melee . | . . . . . Knockbacks . | . . . . . Impact . | . . . . . Kinetic . | . . . . . Secondary . | . . . . . Self-Inflicted Damage . | . . . . . Shots . | . . . . . Rammed 2 | . . 2 . . Targets Rammed 2 | . . 2 . . Kicked . | . . . . . Crushed . | . . . . . Highest Temperature 455 | . 40 448 379 455 Average Temperature 169 | . 20 190 184 207 Received Heat Transfer 212 | . 30 99 63 20 Effects 12 | . . 3 6 3 Shutdowns 1 | . . 1 . . Energy Bleed 3 | . . 1 1 1 Interference 5 | . . 1 3 1 Matter Decay 1 | . . . 1 . Damage (minor) 2 | . . . 1 1 Siege Activations . | . . . . . Robots Corrupted . | . . . . . Combat Hostiles . | . . . . . Parts Fried . | . . . . . Impact Corruptions . | . . . . . Robots Melted . | . . . . . Combat Hostiles . | . . . . . Parts Melted 1 | . . . . 1 Heat Transferred 2469 | . 450 1128 384 507 Parts Sabotaged . | . . . . . Parts Stolen . | . . . . . Parts Stripped . | . . . . . Power Chain Reactions . | . . . . . Alert | -11 -10 -9 -9 -9 ------- Run | Yrd Mat Mat Min Exi Peak Influence 246 | . 176 242 246 . Initial 41 | . . 27 41 . Average 88 | . 41 110 184 . Maximum Alert Level 1 | . . 1 1 . Low Security (%) 90 | 100 100 88 65 . Level 1 9 | . . 11 34 . Level 2 . | . . . . . Level 3 . | . . . . . Level 4 . | . . . . . Level 5 . | . . . . . High Security . | . . . . . Max Security . | . . . . . Squads Dispatched 4 | . 2 2 . . Investigation 2 | . 1 1 . . Extermination . | . . . . . Reinforcement 2 | . 1 1 . . Assault . | . . . . . Garrison . | . . . . . Intercept . | . . . . . Searches Triggered . | . . . . . Construction Impeded . | . . . . . Haulers Reinforced . | . . . . . Active Scanning Responses . | . . . . . Cargo Convoy Interrupts . | . . . . . Stealth | -11 -10 -9 -9 -9 --------- Run | Yrd Mat Mat Min Exi Distress Signals . | . . . . . Communications Jammed . | . . . . . Distress Signals . | . . . . . Times Spotted 45 | . 12 16 9 8 Peak Tracking Total 9 | . 6 7 6 9 Tactical Retreats 1 | . . 1 . . Traps | -11 -10 -9 -9 -9 ------- Run | Yrd Mat Mat Min Exi Traps Triggered 2 | . 1 1 . . Indirectly . | . . . . . Trap Hack Attempts . | . . . . . Triggered . | . . . . . Disarmed . | . . . . . Reprogrammed . | . . . . . Reused . | . . . . . Traps Extracted . | . . . . . Installed . | . . . . . Triggered . | . . . . . Machines | -11 -10 -9 -9 -9 ---------- Run | Yrd Mat Mat Min Exi Machines Disabled 1 | . . . . 1 Max in Single Turn 1 | . . . . 1 Machines Repaired . | . . . . . Machines Dismantled . | . . . . . Machines Sabotaged . | . . . . . Overloaded Fab Kills . | . . . . . Hacking | -11 -10 -9 -9 -9 --------- Run | Yrd Mat Mat Min Exi Machines Accessed 7 | . 3 3 . 1 Terminals 6 | . 3 3 . . Fabricators . | . . . . . Repair Stations . | . . . . . Recycling Units . | . . . . . Scanalyzers . | . . . . . Garrison Access . | . . . . . Total Hacks 18 | . 4 5 . 9 Successful 11 | . 1 1 . 9 Failed 7 | . 3 4 . . Catastrophic 2 | . 2 . . . Database Lockouts . | . . . . . Manual 9 | . 4 5 . . Terminals 9 | . 4 5 . . Fabricators . | . . . . . Repair Stations . | . . . . . Recycling Units . | . . . . . Scanalyzers . | . . . . . Garrison Access . | . . . . . Terminal Hacks 11 | . 1 1 . 9 Record 9 | . . . . 9 Unreport Threat 1 | . . 1 . . Zone Layout 1 | . 1 . . . Fabricator Hacks . | . . . . . Repair Station Hacks . | . . . . . Recycling Unit Hacks . | . . . . . Scanalyzer . | . . . . . Garrison Access Hacks . | . . . . . Unauthorized Hacks . | . . . . . Terminals . | . . . . . Fabricators . | . . . . . Repair Stations . | . . . . . Recycling Units . | . . . . . Scanalyzers . | . . . . . Garrison Access . | . . . . . Data Cores Recovered . | . . . . . Used . | . . . . . Hacking Detections 5 | . 2 3 . . Full Trace Events . | . . . . . Feedback Events . | . . . . . Feedback Blocked . | . . . . . Robot Schematics Acquired . | . . . . . Robots Built . | . . . . . Authchips . | . . . . . Time . | . . . . . Total Robot Build Rating . | . . . . . Part Schematics Acquired . | . . . . . Parts Built . | . . . . . Authchips . | . . . . . Time . | . . . . . Total Part Build Rating . | . . . . . Parts Repaired . | . . . . . Time . | . . . . . Parts Recycled . | . . . . . Recycled Matter . | . . . . . Retrieved Matter . | . . . . . Retrieved Components . | . . . . . Parts Scanalyzed . | . . . . . Part Schematics Acquired . | . . . . . Parts Damaged . | . . . . . Bothacking | -11 -10 -9 -9 -9 ------------ Run | Yrd Mat Mat Min Exi Used RIF Installer . | . . . . . Robots Hacked . | . . . . . Non-combat . | . . . . . Combat . | . . . . . Robot Hacks Applied . | . . . . . Relay Couplers Released . | . . . . . Fabnet Peak Effective % . | . . . . . Robots Rewired . | . . . . . Allies Hacked . | . . . . . Hacks Repelled . | . . . . . Allies | -11 -10 -9 -9 -9 -------- Run | Yrd Mat Mat Min Exi Total Allies 1 | . . . 1 . Largest Group 1 | . . . 1 1 Highest-Rated Group 31 | . . . 31 31 Highest-Rated Ally 31 | . . . 31 31 Total Orders . | . . . . . Ally Attacks . | . . . . . Total Damage . | . . . . . Kills . | . . . . . Allies Corrupted . | . . . . . Allies Melted . | . . . . . Intel | -11 -10 -9 -9 -9 ------- Run | Yrd Mat Mat Min Exi Robot Analysis Total . | . . . . . Derelict Logs Recovered . | . . . . . Drone Launches . | . . . . . Drone Recoveries . | . . . . . Exploration | -11 -10 -9 -9 -9 ------------- Run | Yrd Mat Mat Min Exi Turns Passed 1789 | 126 491 736 179 257 Spaces Moved 802 | 72 223 322 90 95 Core 26 | 26 . . . . Treads 776 | 46 223 322 90 95 Legs . | . . . . . Wheels . | . . . . . Hover . | . . . . . Flight . | . . . . . Fastest Speed 50 | 50 160 160 160 160 Average Speed 160 | 162 160 160 160 160 Slowest Speed 200 | 200 160 160 160 160 Overloaded Moves . | . . . . . Propulsion Burnouts . | . . . . . Robots Hopped . | . . . . . Cave-ins Triggered . | . . . . . Exploration Rate (%) 23 | 7 31 29 16 36 Regions Visited 4 Branch Regions 2 Pre-discovered Areas . | . . . . . Known Exits Taken . | . . . . . Unknown Exits Taken 4 | 1 1 1 1 . Scrap Searched 1 | . . . 1 . Spaces Dug . | . . . . . Terrain Destroyed . | . . . . . Melee . | . . . . . Projectile . | . . . . . AOE . | . . . . . Terrain Rammed . | . . . . . Walls Destroyed . | . . . . . Machines Disabled . | . . . . . Actions | -11 -10 -9 -9 -9 --------- Run | Yrd Mat Mat Min Exi Total 1097 | 78 317 464 101 137 Wait 133 | . 65 66 1 1 Move 798 | 71 222 321 89 95 Hop . | . . . . . Pick Up 13 | 1 5 7 . . Fast Attach 8 | 6 1 1 . . Attach 9 | . . 2 . 7 Detach . | . . . . . Swap 14 | . 1 13 . . Drop 9 | . 1 8 . . Fire 111 | . 22 44 11 34 Melee . | . . . . . Ram . | . . . . . Kick . | . . . . . Crush 2 | . . 2 . . Escape Stasis . | . . . . . Rewire . | . . . . . Trap . | . . . . . Miscellaneous . | . . . . . Route ------- -11/Scrapyard -10/Materials (discovered 2 exits: *Mat / [*Min]) -9/Materials -9/Mines -9/Exiles History --------- Turn | Location | Event 24 | -11/Scrapyard | Discovered new exit (range 16) 127 | -11/Scrapyard | Entered Materials 302 | -10/Materials | Build established: Mutant 359 | -10/Materials | Discovered new exit (range 16) 567 | -10/Materials | Discovered new exit (range 12) 618 | -10/Materials | Entered another Materials area 618 | -9/Materials | Evolved 2 slots: Propulsion x1, Weapon x1 1087 | -9/Materials | Build established: Scavenger-Skirmisher 1327 | -9/Materials | Discovered new exit (range 15) 1354 | -9/Materials | Entered Mines 1411 | -9/Mines | Met a Derelict bent on vengeance 1462 | -9/Mines | Build established: Scavenger-Tank 1489 | -9/Mines | Escorted by a lone wolf Derelict 1525 | -9/Mines | Deemed a non-threat by the Exiles lab entrance 1526 | -9/Mines | Discovered new exit (range 5) 1533 | -9/Mines | Entered Exiles 1533 | -9/Exiles | Accompanied by 1 ally 1573 | -9/Exiles | Met 8R-AWN 1599 | -9/Exiles | Met EX-HEX 1650 | -9/Exiles | Met EX-BIN 1674 | -9/Exiles | Attacked by the Exiles 1679 | -9/Exiles | Destroyed EX-BIN 1742 | -9/Exiles | Core integrity fell below 50% 1776 | -9/Exiles | Core integrity fell below 20% 1790 | -9/Exiles | Destroyed by 8R-AWN with 8R-AWN's Boregun Last Messages --------------- 01759_ Adv. Beam Cannon destroyed. 01761_ Penetrated by HV Slug. 01761_ HV Slug penetrates Earth. 01764_ Penetrated by HV Slug. 01768_ Imp. Heat Sink destroyed. 01770_ Penetrated by HV Slug. 01770_ HV Slug penetrates Earth. 01773_ HV Slug penetrates FarCom Aligner. 01773_ Penetrated by HV Slug. 01773_ Critical hit (Destroy). 01773_ Ion Engine destroyed. 01775_ Penetrated by HV Slug. 01775_ Critical hit (Destroy). 01777_ Penetrated by HV Slug. 01777_ HV Slug penetrates Earth. 01779_ Penetrated by HV Slug. 01782_ Critical hit (Destroy). 01782_ Penetrated by HV Slug. 01786_ HV Slug penetrates Earth. 01790_ Penetrated by HV Slug. Map ----- +----------------------------------------------------+ | ?????????????????????????????????????????????????? | | ?????????????????????????????????????????????????? | | ?????????????????????????????????????????????????? | | ?????????????????????????????????????????????????? | | ?????????????????????????????????????????????????? | | ?????????????????????????????????????????????????? | | ?????????????????????????????????????????????????? | | ?????????????????????????????????????????????????? | | ?????????????????????????????????????????????????? | | ?????????????????????????????????????????????????? | | ???????????? ????????????????????????????????????? | | ??????????# ??????????????????????????????????? | | ??????????# ?????????????????????????????????? | | ??????????# ???""""??????????????????????????? | | ??????????# ??#""""""??????????? ????????????? | | ??????????# ??#"""""""????????? ?????????????? | | ?????????## ###"" """"######## ??????????????? | | ?????????#" """"# ##?????????????? | | ?????????#" """; #?????????????? | | ?????????#" """;;;;;;; #?????????????? | | ?????????#" " ";; ; ##?????????????? | | ?????????#" " "; ; #?????????????? | | ?????????#" !!" #?????????????? | | ??????????# !!!" #?????????????? | | ??????????# !!!!" #?????????????? | | ??????????#" "X"%% @ ; #??????????????? | | ??????????#" "" !!g ; ; #??????????????? | | ??????????#" """" a ; ; #??????????????? | | ?????????##" #########;; ; ##??????????????? | | ????????##"" #???????# ;;;;;; #???????????????? | | ??????###"" #???????# #??????????????? | | ?????"""""" ##??????###########??????????????? | | ????"" " "" ##???###########????????????????? | | ???""" " #####"""""""""##???????????????? | | ?? " " """ """"##??????????????? | | "" " #??????????????? | | " """#??????????????? | | ? " "#???????????#### | | ? " "##?????????##" | | ? ""###???????#" | | ?? """""" """#??????##" | | ?? ######""" "#????### | | ??? ""#?????#####""" ##???# | | ????????????????##""" ##?## | | ?????????????????#"""" ### | | ?????????????????#"" ## | | ?????????????????"""" #### | | ????????????????? ""#?#" | | ???????????????? #"""##?## | | ??????????????? ######???? | +----------------------------------------------------+ Best States ------------- Heat Dissipation 42 Energy Generation 12 Energy Capacity 265 Matter Stores 300 Matter Capacity 300 Sight Range 16 Robot Scan Range 14 Terrain Scan Density 10 Armor Coverage 150 Evasion (%) 40 Recoil Reduction 3 Item Schematics ----------------- None Robot Schematics ------------------ None Fabricated ------------ Nothing Alien Tech Used ----------------- None Achievements -------------- None Challenges ------------ None Game ------ Seed GrenadeIntegratedWheel Manual? 0 Play Time 00:16:01 Cumulative 6.4 hours Start 2024.04.23 @ 09:49:06 End 2024.04.23 @ 10:04:48 Sessions 1 Manual Loads 0 Difficulty Rogue Special Mode None Game No. 11 Rogue 11 Adventurer 0 Explorer 0 Win Type - Total 0 Types 0/0/0/0/0/0/0/0/0 Lore% 9 Gallery% 17 Achievement% 16 Wizard Run 0 Options --------- Layout 0 ASCII 0 Keyboard 1 Movement Numpad Keybinds 0 Fullscreen 1 Font 24/X11 Map View 76x50 Zoom Use 0% Tactical HUD 1 Map Filters NONE Filters NONE Steam 1 RUN: 2faebff3-af2f-46d1-9dca-cc2ed59d8862